bitfinex-derivatives/quotes_BTCF0:USTF0_20250130
["timestamp","ask_amount","ask_price","bid_price","bid_amount"]
[1738265458408,0.30388813,105310.0,105300.0,0.35577077]
[1738265458716,0.11398313,105310.0,105300.0,0.71657077]
[1738265460616,0.11298313,105310.0,105300.0,0.78025077]
[1738265460813,0.11298313,105310.0,105300.0,0.68046783]
[1738265461017,0.30288813,105310.0,105300.0,0.68046783]
[1738265461217,0.189905,105310.0,105300.0,0.65478783]
[1738265462508,0.189905,105310.0,105300.0,0.75857077]
[1738265462709,0.189905,105310.0,105300.0,0.75757077]
[1738265462918,0.189905,105310.0,105300.0,0.75357077]
[1738265463119,0.189905,105310.0,105300.0,0.75557077]
[1738265463510,0.189905,105310.0,105300.0,0.75357077]
[1738265463712,0.189905,105310.0,105300.0,0.70557077]
[1738265466213,0.189905,105310.0,105300.0,0.72557077]
[1738265467331,0.189905,105310.0,105300.0,0.62178783]
[1738265467619,0.189905,105310.0,105300.0,0.43186483]
[1738265467820,0.29368794,105310.0,105300.0,0.05106483]
[1738265468724,0.190905,105310.0,105300.0,0.05106483]
[1738265468910,0.190905,105310.0,105300.0,0.34477077]
[1738265469520,0.190905,105310.0,105300.0,0.70357077]
[1738265469715,0.30488813,105310.0,105300.0,0.70357077]
[1738265469915,0.30488813,105310.0,105300.0,0.34277077]
[1738265470223,0.30388813,105310.0,105300.0,0.34477077]
[1738265470825,0.30488813,105310.0,105300.0,0.34277077]
[1738265471125,0.30588813,105310.0,105300.0,0.34277077]
[1738265471620,0.30588813,105310.0,105300.0,0.23898783]
[1738265471825,0.30488813,105310.0,105300.0,0.23898783]
[1738265472015,0.30488813,105310.0,105300.0,0.59978783]
[1738265473617,0.30488813,105310.0,105300.0,0.70357077]
[1738265474422,0.11498313,105310.0,105300.0,0.70357077]
[1738265475827,0.11398313,105310.0,105300.0,0.73687077]
[1738265476128,0.11298313,105310.0,105300.0,0.73887077]
[1738265476331,0.11298313,105310.0,105300.0,1.04265371]
[1738265477022,0.11298313,105310.0,105300.0,0.96455077]
[1738265478629,0.11298313,105310.0,105300.0,0.93887077]
[1738265479026,0.40667107,105310.0,105300.0,0.46666783]
[1738265479326,0.32788794,105310.0,105300.0,0.24098783]
[1738265479534,0.224105,105310.0,105300.0,0.34477077]
[1738265479834,0.224105,105310.0,105300.0,0.70557077]
[1738265480432,0.224105,105310.0,105300.0,0.70357077]
[1738265480633,0.224105,105310.0,105300.0,0.70557077]
[1738265481129,0.0342,105310.0,105300.0,0.70557077]
[1738265481329,0.87195062,105320.0,105310.0,0.189905]
[1738265481523,0.87195062,105320.0,105310.0,0.29368794]
[1738265482734,0.87395062,105320.0,105310.0,0.29368794]
[1738265482924,0.93044218,105320.0,105310.0,0.29368794]
[1738265483521,0.56964218,105320.0,105310.0,0.189905]
[1738265484631,0.56964218,105320.0,105310.0,0.29368794]
[1738265486328,0.56964218,105320.0,105310.0,0.31936794]
[1738265486530,0.93044218,105320.0,105310.0,0.31936794]
[1738265489637,0.93044218,105320.0,105310.0,0.32790329]
[1738265491039,0.93044218,105320.0,105310.0,0.30222329]
[1738265491238,0.93044218,105320.0,105310.0,0.32790329]
[1738265491727,0.56964218,105320.0,105310.0,0.32790329]
[1738265493332,0.40016749,105320.0,105310.0,0.32790329]
[1738265496330,0.14337149,105320.0,105310.0,0.34790329]
[1738265496532,0.14337149,105320.0,105310.0,0.74230329]
[1738265496844,0.14337149,105320.0,105310.0,0.77610329]
[1738265499439,0.11550033,105320.0,105310.0,0.77610329]
[1738265501239,0.11550033,105320.0,105310.0,2.27610329]
[1738265501741,0.00214258,105320.0,105310.0,2.27610329]
[1738265513151,0.00214258,105320.0,105310.0,2.25042329]
[1738265513350,0.00214258,105320.0,105310.0,2.27610329]
[1738265515042,0.00214258,105320.0,105310.0,0.68302329]
[1738265515340,0.00214258,105320.0,105310.0,0.70870329]
[1738265515540,0.03754258,105320.0,105310.0,0.70870329]
[1738265516852,0.00214258,105320.0,105310.0,0.70870329]
[1738265517061,0.00214258,105320.0,105310.0,0.74260329]
[1738265517354,0.00214258,105320.0,105310.0,0.77770329]
[1738265518661,0.00214258,105320.0,105310.0,0.81021033]
[1738265520543,0.36294258,105320.0,105310.0,0.07668034]
[1738265520858,0.189937,105300.0,105280.0,0.55218131]
[1738265521053,0.61887699,105300.0,105280.0,0.6460063]
[1738265521351,0.0331,105290.0,105280.0,0.6460063]
[1738265521551,0.552696,105320.0,105280.0,0.84954181]
[1738265521755,0.0331,105310.0,105300.0,0.189915]
[1738265522061,0.03324258,105310.0,105300.0,0.35188498]
[1738265522545,0.03324258,105310.0,105300.0,0.28373999]
[1738265522746,0.03324258,105310.0,105300.0,0.31947305]
[1738265523050,0.58394758,105310.0,105300.0,0.12955805]
[1738265523357,0.78221418,105310.0,105300.0,0.10387805]
[1738265523552,0.78221418,105310.0,105300.0,0.12955805]
[1738265523942,0.85331418,105310.0,105300.0,0.10587805]
[1738265524449,0.85331418,105310.0,105300.0,0.13155805]
[1738265525250,0.85331418,105310.0,105300.0,0.32148105]
[1738265525651,0.49251418,105310.0,105300.0,0.32148105]
[1738265526349,0.40760533,105310.0,105300.0,0.32148105]
[1738265526546,0.18200033,105310.0,105300.0,0.4253591]
[1738265526751,0.11350033,105310.0,105300.0,0.6698591]
[1738265526958,0.3107036,105320.0,105310.0,0.189905]
[1738265527146,0.6715036,105320.0,105310.0,0.49378305]
[1738265527345,0.16134221,105320.0,105310.0,0.6338611]
[1738265527555,0.4665,105350.0,105340.0,0.189851]
[1738265527759,0.4665,105350.0,105340.0,0.31940905]
[1738265527947,0.4665,105350.0,105340.0,1.81940905]
[1738265528351,0.656333,105350.0,105340.0,1.81940905]
[1738265528547,0.4317,105350.0,105340.0,0.31940905]
[1738265528960,0.621533,105350.0,105340.0,0.35380905]
[1738265529453,0.625533,105350.0,105340.0,0.35380905]
[1738265530254,0.634533,105350.0,105340.0,0.32040905]
[1738265530453,0.667633,105350.0,105340.0,0.32040905]
[1738265531757,0.4778,105350.0,105340.0,0.32040905]
[1738265532361,0.667633,105350.0,105340.0,0.32040905]
[1738265532753,0.117,105350.0,105340.0,0.32040905]
[1738265532959,0.2018295,105350.0,105340.0,0.32040905]
[1738265534654,0.5626295,105350.0,105340.0,0.32040905]
[1738265535356,0.5626295,105350.0,105340.0,0.32854228]
[1738265535661,0.7524625,105350.0,105340.0,0.32854228]
[1738265536665,0.3916625,105350.0,105340.0,0.68934228]
[1738265537865,0.2018295,105350.0,105340.0,0.68934228]
[1738265538770,0.3916625,105350.0,105340.0,0.68934228]
[1738265539269,0.3826625,105350.0,105340.0,0.68834228]
[1738265539468,0.3836625,105350.0,105340.0,0.32754228]
[1738265540270,0.3806625,105350.0,105340.0,0.32754228]
[1738265540864,0.295833,105350.0,105340.0,0.00813323]
[1738265541069,0.295833,105350.0,105340.0,0.02568]
[1738265543569,0.656633,105350.0,105340.0,0.12955805]
[1738265544265,0.656633,105350.0,105340.0,0.31940905]
[1738265544471,0.656633,105350.0,105340.0,0.29372905]
[1738265544770,0.295833,105350.0,105340.0,0.215531]
[1738265545268,0.295833,105350.0,105340.0,0.31940905]
[1738265546774,0.295833,105350.0,105340.0,0.29372905]
[1738265547073,0.295833,105350.0,105340.0,0.215531]
[1738265547273,0.656633,105350.0,105340.0,0.189851]
[1738265547567,0.656633,105350.0,105340.0,0.215531]
[1738265547772,0.295833,105350.0,105340.0,0.215531]
[1738265547974,0.295833,105350.0,105340.0,0.31940905]
[1738265549471,0.656633,105350.0,105340.0,0.31940905]
[1738265549674,0.295833,105350.0,105340.0,0.215531]
[1738265550576,0.295833,105350.0,105340.0,0.31940905]
[1738265551476,0.295833,105350.0,105340.0,0.215531]
[1738265555475,0.295833,105350.0,105330.0,0.00879062]
[1738265555476,0.189851,105340.0,105330.0,0.00879062]
[1738265555773,0.65452905,105340.0,105330.0,0.00014258]
[1738265556170,0.189887,105320.0,105310.0,0.65599933]
[1738265556469,0.189887,105320.0,105310.0,0.57780128]
[1738265556670,0.189887,105320.0,105310.0,0.68167933]
[1738265556872,0.189887,105320.0,105310.0,0.32087933]
[1738265557378,0.550687,105320.0,105310.0,0.13098233]
[1738265557572,0.551687,105320.0,105310.0,0.13798233]
[1738265557769,0.551687,105320.0,105310.0,0.00842428]
[1738265557964,0.65556505,105320.0,105310.0,0.00842428]
[1738265558279,0.551687,105320.0,105310.0,0.00842428]
[1738265558578,0.189905,105310.0,105300.0,2.20564755]
[1738265558771,0.189905,105310.0,105300.0,1.86512655]
[1738265558772,0.584805,105310.0,105300.0,1.86512655]
[1738265559378,0.224005,105310.0,105300.0,1.86512655]
[1738265560174,0.584805,105310.0,105300.0,1.86712655]
[1738265561178,0.584805,105310.0,105300.0,1.67721355]
[1738265561367,0.584805,105310.0,105300.0,1.64051355]
[1738265561573,0.584805,105310.0,105300.0,1.502]
[1738265561778,0.619305,105310.0,105300.0,1.502]
[1738265564170,0.619305,105310.0,105300.0,0.002]
[1738265564985,0.72318305,105310.0,105300.0,0.002]
[1738265566384,0.619305,105310.0,105300.0,0.002]
[1738265568370,0.584805,105310.0,105300.0,0.29580105]
[1738265568785,0.584805,105310.0,105300.0,0.32860105]
[1738265568978,0.584805,105310.0,105300.0,0.35428105]
[1738265569273,0.6696345,105310.0,105300.0,0.35428105]
[1738265569681,0.3088345,105310.0,105300.0,0.35428105]
[1738265569874,0.4456295,105310.0,105300.0,0.35428105]
[1738265570080,0.0848295,105310.0,105300.0,0.35428105]
[1738265570281,0.4456295,105310.0,105300.0,0.35428105]
[1738265571785,0.0848295,105310.0,105300.0,0.35428105]
[1738265572096,0.4456295,105310.0,105300.0,0.35428105]
[1738265572785,0.6355345,105310.0,105300.0,0.35428105]
[1738265573385,0.6355345,105310.0,105300.0,0.36428105]
[1738265573583,0.0848295,105310.0,105300.0,0.72508105]
[1738265573783,0.0848295,105320.0,105310.0,0.189905]
[1738265573981,0.0848295,105320.0,105310.0,0.58886305]
[1738265574286,0.0848295,105320.0,105310.0,0.38886305]
[1738265574681,0.0848295,105320.0,105310.0,0.74966305]
[1738265575891,0.0858295,105320.0,105310.0,0.74966305]
[1738265576491,0.0868295,105320.0,105310.0,0.74966305]
[1738265576893,0.002,105320.0,105310.0,0.74966305]
[1738265578093,0.002,105320.0,105310.0,0.78966305]
[1738265578690,0.00014258,105330.0,105310.0,0.78966305]
[1738265578988,0.08625417,105340.0,105330.0,0.189869]
[1738265578989,0.0848295,105340.0,105330.0,0.189869]
[1738265579189,0.0848295,105340.0,105330.0,0.7841051]
[1738265579393,0.0848295,105340.0,105330.0,0.8526051]
[1738265579698,0.0848295,105340.0,105330.0,0.86125687]
[1738265579994,0.0848295,105340.0,105330.0,0.87125687]
[1738265580691,0.0878295,105340.0,105330.0,0.87125687]
[1738265580999,0.0948295,105340.0,105330.0,0.87225687]
[1738265582592,0.0918295,105340.0,105330.0,0.87225687]
[1738265582894,0.0918295,105340.0,105330.0,0.87325687]
[1738265583083,0.007,105340.0,105330.0,0.87325687]
[1738265583290,0.00014258,105350.0,105340.0,0.189851]
[1738265583596,0.00014258,105350.0,105340.0,0.65452905]
[1738265583895,0.00014258,105350.0,105340.0,0.75452905]
[1738265584691,0.00114258,105350.0,105340.0,0.8584071]
[1738265584890,0.00114258,105350.0,105340.0,2.25452905]
[1738265585695,0.00214258,105350.0,105340.0,2.3584071]
[1738265586794,0.14158245,105370.0,105360.0,0.189815]
[1738265586990,0.16956517,105380.0,105370.0,0.189797]
[1738265587289,0.14120403,105380.0,105370.0,0.73702305]
[1738265588097,0.14120403,105380.0,105370.0,0.8909011]
[1738265588285,0.10689684,105380.0,105370.0,0.8449011]
[1738265588993,0.10689684,105380.0,105370.0,0.8649011]
[1738265589990,0.10689684,105380.0,105370.0,0.8669011]
[1738265590399,0.10689684,105380.0,105370.0,2.3669011]
[1738265591101,0.16970775,105390.0,105370.0,2.3669011]
[1738265591102,0.00014258,105390.0,105380.0,0.189779]
[1738265591403,0.00014258,105390.0,105380.0,0.8179151]
[1738265591591,0.00014258,105390.0,105380.0,0.71403705]
[1738265592501,0.00014258,105390.0,105380.0,0.71603705]
[1738265592699,0.00014258,105390.0,105380.0,0.71703705]
[1738265594199,0.00014258,105390.0,105380.0,0.8209151]
[1738265596000,0.00014258,105390.0,105380.0,0.8609151]
[1738265596899,0.1,105400.0,105390.0,0.189761]
[1738265597097,0.1,105400.0,105390.0,0.9683171]
[1738265598095,0.101,105400.0,105390.0,0.9683171]
[1738265598898,0.102,105400.0,105390.0,0.9683171]
[1738265600702,0.102,105400.0,105390.0,2.4683171]
[1738265601003,0.102,105400.0,105390.0,2.5044171]
[1738265602704,0.101,105400.0,105390.0,1.0044171]
[1738265602903,0.101,105400.0,105390.0,0.9703171]
[1738265603093,0.101,105400.0,105390.0,0.68207905]
[1738265603290,0.1357,105400.0,105390.0,0.68207905]
[1738265603499,0.1357,105400.0,105390.0,0.69083344]
[1738265603701,0.1357,105400.0,105390.0,0.79471149]
[1738265603900,0.1347,105400.0,105390.0,0.66891149]
[1738265604107,0.1347,105400.0,105390.0,1.02971149]
[1738265604498,0.1347,105400.0,105390.0,1.02671149]
[1738265605007,0.1347,105400.0,105390.0,1.02571149]
[1738265606700,0.1347,105400.0,105390.0,1.00007149]
[1738265606907,0.1347,105400.0,105390.0,1.02571149]
[1738265609212,0.1,105400.0,105390.0,1.02571149]
[1738265610108,0.1,105400.0,105390.0,2.52571149]
[1738265612712,0.1,105400.0,105390.0,2.42183344]
[1738265614709,0.1,105400.0,105390.0,2.19183344]
[1738265614915,0.1368,105400.0,105390.0,2.24183344]
[1738265615305,0.1368,105400.0,105390.0,0.66619344]
[1738265615502,0.1368,105400.0,105390.0,0.69183344]
[1738265615915,0.24951305,105400.0,105390.0,0.69183344]
[1738265619219,0.27850247,105400.0,105390.0,0.66619344]
[1738265619613,0.27850247,105400.0,105390.0,0.69183344]
[1738265619813,0.24170247,105400.0,105390.0,0.84571149]
[1738265620322,0.24170247,105400.0,105390.0,0.82007149]
[1738265620525,0.24170247,105400.0,105390.0,0.84571149]
[1738265620710,0.24170247,105400.0,105390.0,0.74183344]
[1738265621326,0.24170247,105400.0,105390.0,0.84571149]
[1738265621518,0.24270247,105400.0,105390.0,0.74083344]
[1738265621919,0.41226764,105400.0,105390.0,0.74083344]
[1738265622122,0.41126764,105400.0,105390.0,0.74083344]
[1738265622322,0.41126764,105400.0,105390.0,0.74183344]
[1738265623028,0.41126764,105400.0,105390.0,0.38103344]
[1738265623230,0.41126764,105400.0,105390.0,0.74183344]
[1738265623834,0.41126764,105400.0,105390.0,0.71619344]
[1738265624127,0.41126764,105400.0,105390.0,0.74183344]
[1738265625237,0.24170247,105400.0,105390.0,0.74183344]
[1738265625433,0.24170247,105400.0,105390.0,2.24183344]
[1738265625835,0.24170247,105400.0,105390.0,2.34571149]
[1738265626134,0.24170247,105400.0,105390.0,2.24183344]
[1738265626437,0.223213,105420.0,105410.0,0.189725]
[1738265626624,0.223213,105420.0,105410.0,0.32924305]
[1738265627435,0.223213,105420.0,105410.0,0.31924305]
[1738265627638,0.0395,105420.0,105410.0,0.31924305]
[1738265629232,0.0395,105420.0,105410.0,0.68004305]
[1738265631150,0.006,105420.0,105410.0,0.7839211]
[1738265631448,0.006,105420.0,105410.0,0.8366211]
[1738265631737,0.00014258,105430.0,105420.0,0.189707]
[1738265631936,0.00014258,105430.0,105420.0,1.9323631]
[1738265632834,0.00014258,105430.0,105420.0,2.2931631]
[1738265633039,0.00014258,105430.0,105420.0,2.3260631]
[1738265634342,0.00214258,105430.0,105420.0,2.3260631]
[1738265634541,0.00514258,105430.0,105420.0,2.3260631]
[1738265634743,0.00514258,105430.0,105420.0,0.8260631]
[1738265634937,0.00514258,105430.0,105420.0,0.72218505]
[1738265635137,0.1184365,105430.0,105420.0,0.72218505]
[1738265636937,0.1184365,105430.0,105420.0,0.8260631]
[1738265637237,0.1184365,105430.0,105420.0,0.8360631]
[1738265642143,0.1184365,105430.0,105420.0,0.8617031]
[1738265643449,0.00514258,105430.0,105420.0,0.8617031]
[1738265643946,0.11329392,105440.0,105430.0,0.189689]
[1738265644141,0.11329392,105440.0,105430.0,0.86436705]
[1738265644453,0.11329392,105440.0,105430.0,2.36436705]
[1738265645039,0.11329392,105440.0,105430.0,2.36536705]
[1738265645243,0.11929392,105440.0,105430.0,2.36536705]
[1738265645743,0.12129392,105440.0,105430.0,2.36536705]
[1738265647334,0.008,105440.0,105430.0,2.36536705]
[1738265648350,0.008,105440.0,105430.0,2.40076705]
[1738265649050,0.008,105440.0,105430.0,2.42640705]
[1738265650551,0.008,105440.0,105430.0,1.0302851]
[1738265650849,0.008,105440.0,105430.0,0.93530909]
[1738265651051,0.008,105440.0,105430.0,2.43530909]
[1738265651242,0.005,105440.0,105430.0,2.43430909]
[1738265651953,0.003,105440.0,105430.0,2.40866909]
[1738265652160,0.004,105440.0,105430.0,2.40866909]
[1738265652359,0.004,105440.0,105430.0,2.43430909]
[1738265654753,0.00014258,105450.0,105440.0,0.189671]
[1738265654958,0.11329392,105460.0,105450.0,0.3974091]
[1738265655149,0.11329392,105460.0,105450.0,0.7938491]
[1738265656055,0.18061173,105470.0,105450.0,0.6041961]
[1738265656247,0.18061173,105470.0,105460.0,0.65431305]
[1738265656950,0.18061173,105470.0,105460.0,2.15431305]
[1738265657252,0.11481173,105470.0,105460.0,2.15431305]
[1738265657444,0.11581173,105470.0,105460.0,2.19091305]
[1738265657846,0.11581173,105470.0,105460.0,2.25091305]
[1738265658657,0.11981173,105470.0,105460.0,2.25091305]
[1738265659450,0.11881173,105470.0,105460.0,2.25091305]
[1738265659849,0.11881173,105470.0,105460.0,2.25959469]
[1738265660561,0.00551781,105470.0,105460.0,2.25959469]
[1738265660858,0.00551781,105470.0,105460.0,0.68963469]
[1738265661245,0.19513481,105470.0,105460.0,0.68963469]
[1738265661455,0.29901286,105470.0,105460.0,0.37048164]
[1738265661653,0.189635,105460.0,105440.0,0.29367863]
[1738265661853,0.0341,105450.0,105440.0,0.30247287]
[1738265662058,0.0713,105450.0,105440.0,0.30247287]
[1738265662260,0.4321,105450.0,105440.0,0.30247287]
[1738265663463,0.622753,105450.0,105440.0,0.11281487]
[1738265663653,0.622753,105450.0,105440.0,0.00893682]
[1738265664755,0.622753,105450.0,105440.0,0.00014258]
[1738265664957,0.189689,105430.0,105420.0,0.29357705]
[1738265665163,0.3608,105430.0,105420.0,0.30243889]
[1738265665356,0.3608,105430.0,105420.0,0.40631694]
[1738265665857,0.3608,105430.0,105420.0,0.30243889]
[1738265666051,0.3608,105430.0,105420.0,0.30443889]
[1738265666357,0.3608,105430.0,105420.0,0.30543889]
[1738265667563,0.3608,105430.0,105420.0,0.30343889]
[1738265667757,0.3608,105430.0,105420.0,0.30543889]
[1738265668262,0.3608,105430.0,105420.0,0.30443889]
[1738265668467,0.3608,105430.0,105420.0,0.30543889]
[1738265669262,0.3608,105430.0,105420.0,0.33107889]
[1738265669565,0.3608,105430.0,105420.0,0.32907889]
[1738265669762,0.3608,105430.0,105420.0,0.33107889]
[1738265670665,0.3608,105430.0,105420.0,1.83107889]
[1738265671768,0.550489,105430.0,105420.0,0.20156084]
[1738265671963,0.584089,105430.0,105420.0,0.20156084]
[1738265672469,0.3944,105430.0,105420.0,0.30543889]
[1738265673066,0.3944,105430.0,105420.0,0.30443889]
[1738265673460,0.3944,105430.0,105420.0,0.30243889]
[1738265674258,0.3944,105430.0,105420.0,0.19856084]
[1738265674460,0.53517805,105430.0,105410.0,0.00014258]
[1738265674666,0.68988505,105420.0,105410.0,0.00014258]
[1738265675670,0.68988505,105420.0,105410.0,0.00114258]
[1738265676171,0.68988505,105420.0,105410.0,0.00314258]
[1738265677760,0.7937631,105420.0,105410.0,0.00314258]
[1738265677964,0.189747,105400.0,105390.0,0.189746]
[1738265678168,0.550547,105400.0,105390.0,0.189746]
[1738265678571,0.583547,105400.0,105390.0,0.189746]
[1738265679069,0.617747,105400.0,105390.0,0.189746]
[1738265679277,0.617747,105400.0,105390.0,0.192746]
[1738265679475,0.617747,105400.0,105390.0,0.200746]
[1738265679968,0.978547,105400.0,105390.0,0.200746]
[1738265680359,0.978547,105400.0,105390.0,0.011]
[1738265680565,1.08242505,105400.0,105390.0,0.011]
[1738265681467,0.978547,105400.0,105390.0,0.30463905]
[1738265682077,0.978547,105400.0,105390.0,0.30363905]
[1738265682375,0.978547,105400.0,105390.0,0.191761]
[1738265682574,0.978547,105400.0,105390.0,0.196761]
[1738265687975,0.944347,105400.0,105390.0,0.196761]
[1738265688178,0.911347,105400.0,105390.0,0.33313905]
[1738265688481,0.911347,105400.0,105390.0,0.36513905]
[1738265689573,0.911347,105400.0,105390.0,0.261261]
[1738265689980,0.911347,105400.0,105390.0,0.286901]
[1738265691784,0.911347,105400.0,105390.0,0.39077905]
[1738265692679,0.7216,105400.0,105390.0,0.39077905]
[1738265692882,0.7216,105400.0,105390.0,0.5346571]
[1738265693877,0.36094258,105410.0,105400.0,0.189743]
[1738265694076,0.72174258,105410.0,105400.0,0.32752105]
[1738265694477,0.72174258,105410.0,105400.0,0.223643]
[1738265694683,0.72174258,105410.0,105400.0,0.32752105]
[1738265694983,0.72174258,105410.0,105400.0,0.32852105]
[1738265695183,0.72174258,105410.0,105400.0,0.33052105]
[1738265702281,0.72174258,105410.0,105400.0,0.33953707]
[1738265702680,0.72174258,105410.0,105400.0,0.36517707]
[1738265703281,0.72174258,105410.0,105400.0,0.23565902]
[1738265703482,0.91146758,105410.0,105400.0,0.26129902]
[1738265703781,0.36094258,105410.0,105400.0,0.26129902]
[1738265703983,0.36094258,105410.0,105400.0,0.36517707]
[1738265704183,0.36094258,105410.0,105400.0,0.48517707]
[1738265704684,0.36094258,105410.0,105400.0,1.98517707]
[1738265705678,0.30864258,105410.0,105400.0,2.08905512]
[1738265705979,0.61558732,105420.0,105410.0,0.189725]
[1738265706185,0.61558732,105420.0,105410.0,0.51360305]
[1738265706385,0.25478732,105420.0,105410.0,0.54610305]
[1738265706579,0.25478732,105420.0,105410.0,0.57174305]
[1738265706783,0.25478732,105420.0,105410.0,0.93254305]
[1738265707087,0.11329392,105420.0,105410.0,1.0364211]
[1738265708890,0.11329392,105420.0,105410.0,1.0698211]
[1738265710284,0.31125564,105430.0,105420.0,0.189707]
[1738265710285,0.26749962,105430.0,105420.0,0.189707]
[1738265710589,0.26749962,105430.0,105420.0,0.9782631]
[1738265710788,0.00014258,105430.0,105420.0,2.4782631]
[1738265710984,0.08485718,105440.0,105430.0,0.189689]
[1738265711193,0.08485718,105440.0,105430.0,0.38736705]
[1738265712286,0.08685718,105440.0,105430.0,0.38736705]
[1738265712996,0.08685718,105440.0,105430.0,0.93816705]
[1738265713692,0.09185718,105440.0,105430.0,0.93816705]
[1738265714491,0.007,105440.0,105430.0,0.93816705]
[1738265714689,0.005,105440.0,105430.0,0.93816705]
[1738265715893,0.08637517,105450.0,105440.0,0.189671]
[1738265716194,0.08637517,105450.0,105440.0,0.31354905]
[1738265717295,0.08937517,105450.0,105440.0,0.31354905]
[1738265717998,0.08937517,105450.0,105440.0,0.67434905]
[1738265718396,0.09037517,105450.0,105440.0,0.67434905]
[1738265718588,0.00551799,105450.0,105440.0,0.67434905]
[1738265719200,0.00409504,105450.0,105440.0,0.67434905]
[1738265726999,0.00409504,105450.0,105440.0,0.69994905]
[1738265727796,0.00409504,105450.0,105440.0,0.67994905]
[1738265727998,0.00409504,105450.0,105440.0,0.78994905]
[1738265728808,0.00409504,105450.0,105440.0,0.67994905]
[1738265729406,0.00409504,105450.0,105440.0,0.72994905]
[1738265730106,0.00409504,105450.0,105440.0,0.67994905]
[1738265733502,0.00409504,105450.0,105440.0,0.71994905]
[1738265735720,0.00409504,105450.0,105440.0,0.67994905]
[1738265736411,0.00409504,105450.0,105440.0,0.29354905]
[1738265736615,0.00409504,105450.0,105440.0,0.67994905]
[1738265739017,0.08895222,105450.0,105440.0,0.67994905]
[1738265739318,0.08895222,105450.0,105440.0,0.65434905]
[1738265739616,0.189671,105440.0,105430.0,0.00909709]
[1738265739809,0.39634905,105440.0,105420.0,0.55064458]
[1738265740119,0.292471,105440.0,105430.0,0.29356705]
[1738265740313,0.292471,105440.0,105430.0,0.31916705]
[1738265740503,0.1028,105440.0,105430.0,0.31916705]
[1738265740710,0.44875222,105450.0,105440.0,0.189671]
[1738265740924,0.44875222,105450.0,105440.0,0.29354905]
[1738265741421,0.44575222,105450.0,105440.0,0.29354905]
[1738265742428,0.44875222,105450.0,105440.0,0.29354905]
[1738265742827,0.44975222,105450.0,105440.0,0.29354905]
[1738265743028,0.724201,105450.0,105440.0,0.189671]
[1738265743329,0.82807905,105450.0,105440.0,0.189671]
[1738265743734,0.534548,105450.0,105440.0,0.29354905]
[1738265744532,0.534548,105450.0,105440.0,0.31914905]
[1738265744935,0.724201,105450.0,105440.0,0.31914905]
[1738265745232,0.724201,105450.0,105440.0,0.215271]
[1738265746032,0.173748,105450.0,105440.0,0.576071]
[1738265746437,0.00409504,105450.0,105440.0,0.550471]
[1738265747831,0.00409504,105450.0,105440.0,0.65434905]
[1738265749029,0.00409504,105450.0,105440.0,0.29354905]
[1738265749233,0.19374804,105450.0,105440.0,0.29354905]
[1738265749735,0.19374804,105450.0,105440.0,0.189671]
[1738265750129,0.00409504,105450.0,105440.0,0.189671]
[1738265750835,0.19374804,105450.0,105440.0,0.189671]
[1738265751240,0.19374804,105450.0,105440.0,0.29354905]
[1738265751535,0.19374804,105450.0,105440.0,0.189671]
[1738265751735,0.36489504,105450.0,105440.0,0.189671]
[1738265752430,0.19374804,105450.0,105440.0,0.189671]
[1738265753332,0.00409504,105450.0,105440.0,0.189671]
[1738265753738,0.00409504,105450.0,105440.0,0.29354905]
[1738265754440,0.19374804,105450.0,105440.0,0.189671]
[1738265754735,0.19374804,105450.0,105440.0,0.29354905]
[1738265755333,0.00409504,105450.0,105440.0,0.29354905]
[1738265755535,0.00409504,105450.0,105440.0,0.39474905]
[1738265756130,0.14602142,105450.0,105440.0,0.39474905]
[1738265756436,0.14602142,105450.0,105440.0,0.40395526]
[1738265757634,0.14602142,105450.0,105440.0,0.33615526]
[1738265757840,0.33567442,105450.0,105440.0,0.22447721]
[1738265758139,0.40207442,105450.0,105440.0,0.30275526]
[1738265758330,0.33567442,105450.0,105440.0,0.30275526]
[1738265758530,0.14602142,105450.0,105440.0,0.32835526]
[1738265758737,0.14602142,105450.0,105440.0,0.43235526]
[1738265759033,0.00409504,105450.0,105440.0,0.43235526]
[1738265759443,0.00409504,105450.0,105440.0,0.79315526]
[1738265759832,0.00409504,105450.0,105440.0,0.43235526]
[1738265760433,0.00409504,105450.0,105440.0,0.19887721]
[1738265760434,0.19374804,105450.0,105440.0,0.19887721]
[1738265760634,0.19374804,105450.0,105440.0,0.22447721]
[1738265761233,0.19374804,105450.0,105440.0,0.03480621]
[1738265761434,0.26354804,105450.0,105440.0,0.03480621]
[1738265761641,0.26354804,105450.0,105440.0,0.00920621]
[1738265761836,0.26354804,105450.0,105430.0,0.65435805]
[1738265762240,0.0324,105440.0,105430.0,0.67995805]
[1738265762846,0.0324,105440.0,105430.0,0.68895072]
[1738265763541,0.14202142,105450.0,105440.0,0.189671]
[1738265763733,0.14202142,105450.0,105440.0,0.39794905]
[1738265763935,0.14202142,105450.0,105440.0,0.61794905]
[1738265764351,0.75449796,105460.0,105440.0,0.7218271]
[1738265764352,0.16965296,105460.0,105440.0,0.7218271]
[1738265764646,0.16965296,105460.0,105450.0,0.4230091]
[1738265764939,0.16965296,105460.0,105450.0,0.6430091]
[1738265765138,0.53045296,105460.0,105450.0,0.6430091]
[1738265765344,0.53045296,105470.0,105460.0,0.189635]
[1738265765538,0.53045296,105470.0,105460.0,0.36321305]
[1738265765736,0.53045296,105470.0,105460.0,0.39841305]
[1738265765940,0.72006996,105470.0,105460.0,0.39841305]
[1738265766345,0.16965296,105470.0,105460.0,0.39841305]
[1738265766544,0.53045296,105470.0,105460.0,0.39841305]
[1738265766945,0.53545296,105470.0,105460.0,0.39941305]
[1738265767245,0.53545296,105470.0,105460.0,0.41941305]
[1738265767743,0.53945296,105470.0,105460.0,0.41941305]
[1738265768243,0.17865296,105470.0,105460.0,0.41941305]
[1738265768644,0.009,105470.0,105460.0,0.41941305]
[1738265769049,0.009,105470.0,105460.0,0.39941305]
[1738265769849,0.004,105470.0,105460.0,0.39841305]
[1738265770049,0.007,105470.0,105460.0,0.39841305]
[1738265770743,0.007,105470.0,105460.0,0.40733246]
[1738265771045,0.004,105470.0,105460.0,0.40733246]
[1738265771550,0.20265676,105470.0,105460.0,0.40733246]
[1738265773738,0.20265676,105470.0,105460.0,0.42733246]
[1738265773940,0.56345676,105470.0,105460.0,0.42733246]
[1738265774539,0.20265676,105470.0,105460.0,0.42733246]
[1738265775050,0.20265676,105470.0,105460.0,0.78813246]
[1738265775251,0.08913861,105470.0,105460.0,0.78813246]
[1738265775556,0.08913861,105470.0,105460.0,2.28813246]
[1738265779757,0.004,105470.0,105460.0,2.28813246]
[1738265781451,0.004,105470.0,105460.0,0.78813246]
[1738265783454,0.004,105470.0,105460.0,0.81373246]
[1738265789571,0.2921,105490.0,105480.0,0.189599]